[Event "Early Titled Tuesday Blitz | February 8 2022"]
[White "Fajdetic, Hrvoje"]
[Black "Loy, Konstantin"]
[WhiteFideId "14501945"]
[BlackFideId "14122499"]
[WhiteElo "2140"]
[BlackElo "2084"]
[Result "1/2-1/2"]
[Round "10"]
[TimeControl "180+1"]
[Date "2022.02.08"]
[WhiteClock "0:00:10"]
[BlackClock "0:00:07"]

1. d4 {[%clk 0:03:00]}  Nf6 {[%clk 0:02:58]} 2. Bf4 {[%clk 0:03:00]}  g6 {[%clk 0:02:57]} 3. Nc3 {[%clk 0:02:59]}  d5 {[%clk 0:02:54]} 4. e3 {[%clk 0:02:58]}  c6 {[%clk 0:02:50]} 5. Qd2 {[%clk 0:02:54]}  Bg7 {[%clk 0:02:49]} 6. h4 {[%clk 0:02:53]}  h5 {[%clk 0:02:48]} 7. f3 {[%clk 0:02:52]}  Bf5 {[%clk 0:02:42]} 8. O-O-O {[%clk 0:02:50]}  Nbd7 {[%clk 0:02:29]} 9. Nh3 {[%clk 0:02:39]}  Qa5 {[%clk 0:02:25]} 10. Kb1 {[%clk 0:02:33]}  Bxh3 {[%clk 0:02:19]} 11. Rxh3 {[%clk 0:02:32]}  O-O-O {[%clk 0:02:18]} 12. Nb5 {[%clk 0:02:10]}  Qb6 {[%clk 0:01:40]} 13. Bc7 {[%clk 0:01:47]}  Qxc7 {[%clk 0:01:34]} 14. Nxc7 {[%clk 0:01:48]}  Kxc7 {[%clk 0:01:34]} 15. c4 {[%clk 0:01:36]}  e6 {[%clk 0:01:32]} 16. Rc1 {[%clk 0:01:22]}  Kb8 {[%clk 0:01:31]} 17. c5 {[%clk 0:01:08]}  Bh6 {[%clk 0:01:30]} 18. f4 {[%clk 0:01:02]}  Ne4 {[%clk 0:01:28]} 19. Qc2 {[%clk 0:01:01]}  f5 {[%clk 0:01:25]} 20. Bd3 {[%clk 0:01:00]}  Ndf6 {[%clk 0:01:24]} 21. Rhh1 {[%clk 0:00:54]}  Rh7 {[%clk 0:01:21]} 22. b4 {[%clk 0:00:53]}  a6 {[%clk 0:01:19]} 23. Ka1 {[%clk 0:00:52]}  Kc8 {[%clk 0:01:13]} 24. a4 {[%clk 0:00:51]}  Kd7 {[%clk 0:01:07]} 25. Kb2 {[%clk 0:00:46]}  Ke8 {[%clk 0:01:06]} 26. b5 {[%clk 0:00:42]}  axb5 {[%clk 0:01:05]} 27. axb5 {[%clk 0:00:43]}  Rc7 {[%clk 0:00:55]} 28. Ra1 {[%clk 0:00:41]}  Bf8 {[%clk 0:00:52]} 29. b6 {[%clk 0:00:38]}  Rcc8 {[%clk 0:00:49]} 30. Ra7 {[%clk 0:00:37]}  Rb8 {[%clk 0:00:49]} 31. Rha1 {[%clk 0:00:33]}  Be7 {[%clk 0:00:46]} 32. R1a5 {[%clk 0:00:33]}  Ng4 {[%clk 0:00:44]} 33. Bxe4 {[%clk 0:00:30]}  dxe4 {[%clk 0:00:42]} 34. Qb3 {[%clk 0:00:28]}  Kf7 {[%clk 0:00:39]} 35. Kc2 {[%clk 0:00:27]}  Bxh4 {[%clk 0:00:39]} 36. Rxb7+ {[%clk 0:00:11]}  Rxb7 {[%clk 0:00:38]} 37. Ra7 {[%clk 0:00:12]}  Rdd7 {[%clk 0:00:35]} 38. Rxb7 {[%clk 0:00:11]}  Rxb7 {[%clk 0:00:36]} 39. Qa4 {[%clk 0:00:10]}  Nxe3+ {[%clk 0:00:35]} 40. Kc1 {[%clk 0:00:09]}  Nd5 {[%clk 0:00:14]} 41. Qxc6 {[%clk 0:00:09]}  Rb8 {[%clk 0:00:13]} 42. b7 {[%clk 0:00:09]}  Bd8 {[%clk 0:00:08]} 43. Qd7+ {[%clk 0:00:06]}  Kf6 {[%clk 0:00:04]} 44. c6 {[%clk 0:00:05]}  Bc7 {[%clk 0:00:04]} 45. Kd2 {[%clk 0:00:05]}  h4 {[%clk 0:00:05]} 46. Qh7 {[%clk 0:00:04]}  Rd8 {[%clk 0:00:03]} 47. Qxh4+ {[%clk 0:00:04]}  Kf7 {[%clk 0:00:03]} 48. Qxd8 {[%clk 0:00:04]}  Bxd8 {[%clk 0:00:04]} 49. b8=Q {[%clk 0:00:04]}  Bc7 {[%clk 0:00:05]} 50. Qb7 {[%clk 0:00:03]}  Kf6 {[%clk 0:00:05]} 51. g3 {[%clk 0:00:03]}  g5 {[%clk 0:00:05]} 52. Kc2 {[%clk 0:00:03]}  gxf4 {[%clk 0:00:05]} 53. gxf4 {[%clk 0:00:04]}  Bxf4 {[%clk 0:00:05]} 54. Qc8 {[%clk 0:00:02]}  Bc7 {[%clk 0:00:06]} 55. Qh8+ {[%clk 0:00:03]}  Kg5 {[%clk 0:00:05]} 56. Kb3 {[%clk 0:00:04]}  f4 {[%clk 0:00:05]} 57. Kc4 {[%clk 0:00:04]}  e3 {[%clk 0:00:06]} 58. Qg7+ {[%clk 0:00:05]}  Kf5 {[%clk 0:00:06]} 59. Qg8 {[%clk 0:00:05]}  f3 {[%clk 0:00:05]} 60. Qf7+ {[%clk 0:00:06]}  Ke4 {[%clk 0:00:05]} 61. Qxe6+ {[%clk 0:00:07]}  Kf4 {[%clk 0:00:06]} 62. Kxd5 {[%clk 0:00:07]}  e2 {[%clk 0:00:06]} 63. Qf7+ {[%clk 0:00:08]}  Kg3 {[%clk 0:00:06]} 64. Qxc7+ {[%clk 0:00:08]}  Kf2 {[%clk 0:00:06]} 65. Qe5 {[%clk 0:00:09]}  e1=Q {[%clk 0:00:06]} 66. Qxe1+ {[%clk 0:00:09]}  Kxe1 {[%clk 0:00:07]} 67. c7 {[%clk 0:00:09]}  f2 {[%clk 0:00:08]} 68. c8=Q {[%clk 0:00:10]}  f1=Q {[%clk 0:00:09]} 69. Qe6+ {[%clk 0:00:10]}  Kd2 {[%clk 0:00:09]} 70. Qe4 {[%clk 0:00:10]}  Qb5+ {[%clk 0:00:08]} 71. Ke6 {[%clk 0:00:09]}  Qb6+ {[%clk 0:00:07]} 72. Ke5 {[%clk 0:00:09]}  Qc7+ {[%clk 0:00:07]} 73. Kf5 {[%clk 0:00:09]}  Qh7+ {[%clk 0:00:06]} 74. Ke5 {[%clk 0:00:09]}  Qe7+ {[%clk 0:00:06]} 75. Kd5 {[%clk 0:00:09]}  Qb7+ {[%clk 0:00:06]} 76. Ke5 {[%clk 0:00:10]}  Qe7+ {[%clk 0:00:07]} 77. Kf4 {[%clk 0:00:10]}  Qh4+ {[%clk 0:00:07]} 78. Ke5 {[%clk 0:00:10]}  Qe7+ {[%clk 0:00:07]} 1/2-1/2


[Site "https://www.chess.com"]

[Event "Early Titled Tuesday Blitz | February 8 2022"]
[White "Farmani Anosheh, Armin"]
[Black "Stefanov, Plamen"]
[WhiteFideId "24613240"]
[BlackFideId "2900980"]
[WhiteElo "2289"]
[BlackElo "2137"]
[Result "1-0"]
[Round "10"]
[TimeControl "180+1"]
[Date "2022.02.08"]
[WhiteClock "0:00:19"]
[BlackClock "0:00:09"]

1. d4 {[%clk 0:03:00]}  d5 {[%clk 0:03:00]} 2. c4 {[%clk 0:02:59]}  c6 {[%clk 0:03:00]} 3. Nf3 {[%clk 0:02:59]}  e6 {[%clk 0:03:01]} 4. Qc2 {[%clk 0:02:55]}  Nf6 {[%clk 0:03:01]} 5. g3 {[%clk 0:02:54]}  Be7 {[%clk 0:03:01]} 6. Bg2 {[%clk 0:02:54]}  O-O {[%clk 0:03:01]} 7. O-O {[%clk 0:02:55]}  Ne4 {[%clk 0:03:01]} 8. Nbd2 {[%clk 0:02:37]}  f5 {[%clk 0:03:00]} 9. Ne1 {[%clk 0:02:38]}  Nd7 {[%clk 0:02:57]} 10. Ndf3 {[%clk 0:02:38]}  b6 {[%clk 0:02:52]} 11. Nd3 {[%clk 0:02:33]}  Ba6 {[%clk 0:02:50]} 12. b3 {[%clk 0:02:31]}  Rc8 {[%clk 0:02:49]} 13. Bb2 {[%clk 0:01:43]}  h6 {[%clk 0:02:41]} 14. Rac1 {[%clk 0:01:42]}  g5 {[%clk 0:02:36]} 15. e3 {[%clk 0:01:40]}  Qe8 {[%clk 0:02:06]} 16. Rfd1 {[%clk 0:01:38]}  Qh5 {[%clk 0:02:06]} 17. Nfe5 {[%clk 0:01:38]}  Ndf6 {[%clk 0:01:59]} 18. f3 {[%clk 0:01:31]}  Nd6 {[%clk 0:01:48]} 19. c5 {[%clk 0:01:31]}  Nf7 {[%clk 0:01:37]} 20. cxb6 {[%clk 0:01:21]}  axb6 {[%clk 0:01:21]} 21. Nxc6 {[%clk 0:01:17]}  Bd6 {[%clk 0:01:20]} 22. Qd2 {[%clk 0:01:12]}  g4 {[%clk 0:01:12]} 23. f4 {[%clk 0:00:31]}  Ne4 {[%clk 0:01:11]} 24. Bxe4 {[%clk 0:00:31]}  fxe4 {[%clk 0:01:10]} 25. Nde5 {[%clk 0:00:32]}  Nxe5 {[%clk 0:00:36]} 26. fxe5 {[%clk 0:00:19]}  Bc7 {[%clk 0:00:19]} 27. Ne7+ {[%clk 0:00:18]}  Kh7 {[%clk 0:00:18]} 28. Nxc8 {[%clk 0:00:19]}  Rxc8 {[%clk 0:00:17]} 29. Rc2 {[%clk 0:00:19]}  Bd8 {[%clk 0:00:16]} 30. Rxc8 {[%clk 0:00:19]}  Bxc8 {[%clk 0:00:15]} 31. Rf1 {[%clk 0:00:19]}  Bg5 {[%clk 0:00:14]} 32. Qf2 {[%clk 0:00:18]}  Kg7 {[%clk 0:00:12]} 33. Qf8+ {[%clk 0:00:18]}  Kh7 {[%clk 0:00:03]} 34. Rf7+ {[%clk 0:00:18]}  Qxf7 {[%clk 0:00:02]} 35. Qxf7+ {[%clk 0:00:19]}  Kh8 {[%clk 0:00:03]} 36. Qf8+ {[%clk 0:00:19]}  Kh7 {[%clk 0:00:04]} 37. Qxc8 {[%clk 0:00:19]}  Bxe3+ {[%clk 0:00:03]} 38. Kg2 {[%clk 0:00:20]}  Bd2 {[%clk 0:00:04]} 39. Bc3 {[%clk 0:00:16]}  e3 {[%clk 0:00:04]} 40. Bxd2 {[%clk 0:00:16]}  exd2 {[%clk 0:00:04]} 41. Qc2+ {[%clk 0:00:17]}  Kg7 {[%clk 0:00:04]} 42. Qxd2 {[%clk 0:00:18]}  Kf7 {[%clk 0:00:04]} 43. Qb4 {[%clk 0:00:18]}  Kg6 {[%clk 0:00:04]} 44. Qxb6 {[%clk 0:00:18]}  Kf5 {[%clk 0:00:05]} 45. a4 {[%clk 0:00:18]}  Ke4 {[%clk 0:00:06]} 46. a5 {[%clk 0:00:19]}  Ke3 {[%clk 0:00:06]} 47. a6 {[%clk 0:00:20]}  Ke2 {[%clk 0:00:06]} 48. a7 {[%clk 0:00:21]}  Ke1 {[%clk 0:00:07]} 49. a8=Q {[%clk 0:00:22]}  Kd2 {[%clk 0:00:07]} 50. Qc5 {[%clk 0:00:22]}  Ke3 {[%clk 0:00:08]} 51. Qaa5 {[%clk 0:00:20]}  h5 {[%clk 0:00:09]} 52. Qe1+ {[%clk 0:00:20]}  Kd3 {[%clk 0:00:09]} 53. Qcc3# {[%clk 0:00:19]} 1-0


[Site "https://www.chess.com"]

[Event "Early Titled Tuesday Blitz | February 8 2022"]
[White "Fernandez, Michael"]
[Black "Jaivardhan Raj"]
[WhiteFideId "5803560"]
[BlackFideId "25744437"]
[WhiteElo "2110"]
[BlackElo "1375"]
[Result "0-1"]
[Round "10"]
[TimeControl "180+1"]
[Date "2022.02.08"]
[WhiteClock "0:00:24"]
[BlackClock "0:00:01"]

1. b4 {[%clk 0:03:00]}  e5 {[%clk 0:02:44]} 2. Bb2 {[%clk 0:03:01]}  Bxb4 {[%clk 0:02:43]} 3. Bxe5 {[%clk 0:03:01]}  Nf6 {[%clk 0:02:44]} 4. e3 {[%clk 0:03:01]}  Nc6 {[%clk 0:02:44]} 5. Bb2 {[%clk 0:03:01]}  O-O {[%clk 0:02:44]} 6. Nf3 {[%clk 0:03:02]}  d5 {[%clk 0:02:44]} 7. c4 {[%clk 0:03:01]}  Re8 {[%clk 0:02:44]} 8. cxd5 {[%clk 0:02:58]}  Nxd5 {[%clk 0:02:44]} 9. Be2 {[%clk 0:02:58]}  Rxe3 {[%clk 0:02:44]} 10. fxe3 {[%clk 0:02:52]}  Nxe3 {[%clk 0:02:43]} 11. Qb3 {[%clk 0:02:49]}  Qe7 {[%clk 0:02:42]} 12. Nc3 {[%clk 0:02:15]}  Nxg2+ {[%clk 0:02:27]} 13. Kd1 {[%clk 0:02:15]}  Nf4 {[%clk 0:02:15]} 14. Re1 {[%clk 0:02:11]}  Bg4 {[%clk 0:02:07]} 15. Nd5 {[%clk 0:01:56]}  Nxd5 {[%clk 0:02:02]} 16. Qxd5 {[%clk 0:01:56]}  Rd8 {[%clk 0:01:58]} 17. Qg5 {[%clk 0:01:35]}  Qxg5 {[%clk 0:00:51]} 18. Nxg5 {[%clk 0:01:36]}  Rxd2+ {[%clk 0:00:48]} 19. Kc1 {[%clk 0:01:35]}  Rxe2 {[%clk 0:00:46]} 20. Rxe2 {[%clk 0:01:35]}  Bxe2 {[%clk 0:00:45]} 21. Ne4 {[%clk 0:01:34]}  Bd3 {[%clk 0:00:40]} 22. Nf2 {[%clk 0:01:30]}  Bf5 {[%clk 0:00:38]} 23. a4 {[%clk 0:01:20]}  Bc5 {[%clk 0:00:36]} 24. Nd1 {[%clk 0:01:20]}  Nb4 {[%clk 0:00:34]} 25. Kd2 {[%clk 0:01:17]}  Nd5 {[%clk 0:00:24]} 26. Rc1 {[%clk 0:01:15]}  Bd6 {[%clk 0:00:22]} 27. Ke1 {[%clk 0:01:01]}  Bxh2 {[%clk 0:00:20]} 28. a5 {[%clk 0:01:00]}  h5 {[%clk 0:00:15]} 29. Rc5 {[%clk 0:00:58]}  Bg3+ {[%clk 0:00:12]} 30. Kf1 {[%clk 0:00:56]}  c6 {[%clk 0:00:12]} 31. a6 {[%clk 0:00:56]}  b6 {[%clk 0:00:09]} 32. Rxc6 {[%clk 0:00:55]}  h4 {[%clk 0:00:09]} 33. Nf2 {[%clk 0:00:51]}  h3 {[%clk 0:00:07]} 34. Bd4 {[%clk 0:00:42]}  h2 {[%clk 0:00:07]} 35. Kg2 {[%clk 0:00:42]}  Bb8 {[%clk 0:00:04]} 36. Rc1 {[%clk 0:00:26]}  Nf4+ {[%clk 0:00:04]} 37. Kh1 {[%clk 0:00:26]}  Nd3 {[%clk 0:00:02]} 38. Nxd3 {[%clk 0:00:24]}  Be4# {[%clk 0:00:01]} 0-1


[Site "https://www.chess.com"]

[Event "Early Titled Tuesday Blitz | February 8 2022"]
[White "Gontcharov, Vladislav"]
[Black "Dahanayake, Isara Banidu"]
[WhiteFideId "4123492"]
[BlackFideId "9932631"]
[WhiteElo "2503"]
[BlackElo "1394"]
[Result "1/2-1/2"]
[Round "10"]
[TimeControl "180+1"]
[Date "2022.02.08"]
[WhiteClock "0:00:09"]
[BlackClock "0:00:07"]

1. e4 {[%clk 0:02:01]}  c5 {[%clk 0:02:59]} 2. Nf3 {[%clk 0:01:59]}  d6 {[%clk 0:02:59]} 3. d4 {[%clk 0:02:00]}  cxd4 {[%clk 0:02:59]} 4. Qxd4 {[%clk 0:02:00]}  Nc6 {[%clk 0:02:59]} 5. Bb5 {[%clk 0:02:01]}  Bd7 {[%clk 0:02:59]} 6. Bxc6 {[%clk 0:02:01]}  Bxc6 {[%clk 0:02:59]} 7. Nc3 {[%clk 0:02:02]}  Nf6 {[%clk 0:02:57]} 8. Bg5 {[%clk 0:02:02]}  e6 {[%clk 0:02:57]} 9. O-O-O {[%clk 0:02:01]}  Be7 {[%clk 0:02:57]} 10. Kb1 {[%clk 0:01:59]}  O-O {[%clk 0:02:57]} 11. Rhe1 {[%clk 0:01:58]}  Qa5 {[%clk 0:02:55]} 12. Qd2 {[%clk 0:01:58]}  Rac8 {[%clk 0:02:46]} 13. Nd5 {[%clk 0:01:56]}  Qd8 {[%clk 0:02:34]} 14. Nxe7+ {[%clk 0:01:56]}  Qxe7 {[%clk 0:02:34]} 15. Bxf6 {[%clk 0:01:52]}  Qxf6 {[%clk 0:02:34]} 16. Qxd6 {[%clk 0:01:52]}  Rfd8 {[%clk 0:02:31]} 17. Qb4 {[%clk 0:01:52]}  h6 {[%clk 0:01:46]} 18. a3 {[%clk 0:01:41]}  a5 {[%clk 0:01:35]} 19. Rxd8+ {[%clk 0:01:39]}  Qxd8 {[%clk 0:01:31]} 20. Qd4 {[%clk 0:01:37]}  Qc7 {[%clk 0:01:25]} 21. Rd1 {[%clk 0:01:35]}  b5 {[%clk 0:01:18]} 22. Ne5 {[%clk 0:01:21]}  Be8 {[%clk 0:01:11]} 23. Rd2 {[%clk 0:01:21]}  f6 {[%clk 0:01:05]} 24. Nf3 {[%clk 0:01:13]}  Bg6 {[%clk 0:00:51]} 25. g3 {[%clk 0:01:10]}  e5 {[%clk 0:00:37]} 26. Qd5+ {[%clk 0:01:04]}  Bf7 {[%clk 0:00:37]} 27. Qxb5 {[%clk 0:01:04]}  Rb8 {[%clk 0:00:32]} 28. Qd7 {[%clk 0:00:45]}  Qb6 {[%clk 0:00:32]} 29. c3 {[%clk 0:00:33]}  Qb3 {[%clk 0:00:32]} 30. Kc1 {[%clk 0:00:29]}  Qa2 {[%clk 0:00:30]} 31. Qd3 {[%clk 0:00:28]}  Bh5 {[%clk 0:00:13]} 32. Qd5+ {[%clk 0:00:26]}  Qxd5 {[%clk 0:00:11]} 33. exd5 {[%clk 0:00:27]}  Bxf3 {[%clk 0:00:11]} 34. d6 {[%clk 0:00:27]}  Rd8 {[%clk 0:00:12]} 35. c4 {[%clk 0:00:26]}  e4 {[%clk 0:00:12]} 36. b4 {[%clk 0:00:26]}  axb4 {[%clk 0:00:12]} 37. axb4 {[%clk 0:00:27]}  Kf7 {[%clk 0:00:13]} 38. c5 {[%clk 0:00:26]}  Ke6 {[%clk 0:00:13]} 39. Kc2 {[%clk 0:00:26]}  f5 {[%clk 0:00:12]} 40. Kc3 {[%clk 0:00:26]}  g5 {[%clk 0:00:12]} 41. Kc4 {[%clk 0:00:25]}  f4 {[%clk 0:00:12]} 42. Kd4 {[%clk 0:00:25]}  fxg3 {[%clk 0:00:10]} 43. fxg3 {[%clk 0:00:22]}  h5 {[%clk 0:00:10]} 44. Rb2 {[%clk 0:00:22]}  h4 {[%clk 0:00:10]} 45. Ke3 {[%clk 0:00:22]}  hxg3 {[%clk 0:00:10]} 46. hxg3 {[%clk 0:00:21]}  Kd5 {[%clk 0:00:11]} 47. Rd2+ {[%clk 0:00:20]}  Kc4 {[%clk 0:00:11]} 48. Rd4+ {[%clk 0:00:20]}  Kb5 {[%clk 0:00:11]} 49. Rd2 {[%clk 0:00:19]}  Kc6 {[%clk 0:00:11]} 50. Rh2 {[%clk 0:00:18]}  Kb5 {[%clk 0:00:10]} 51. Rh7 {[%clk 0:00:16]}  Kxb4 {[%clk 0:00:10]} 52. c6 {[%clk 0:00:17]}  Rxd6 {[%clk 0:00:10]} 53. Rb7+ {[%clk 0:00:14]}  Kc5 {[%clk 0:00:09]} 54. c7 {[%clk 0:00:14]}  Rc6 {[%clk 0:00:09]} 55. g4 {[%clk 0:00:11]}  Kd6 {[%clk 0:00:09]} 56. Rb5 {[%clk 0:00:11]}  Rxc7 {[%clk 0:00:08]} 57. Rxg5 {[%clk 0:00:12]}  Rc3+ {[%clk 0:00:08]} 58. Kf2 {[%clk 0:00:11]}  Rc2+ {[%clk 0:00:08]} 59. Ke3 {[%clk 0:00:10]}  Re2+ {[%clk 0:00:08]} 60. Kd4 {[%clk 0:00:09]}  e3 {[%clk 0:00:08]} 61. Rg6+ {[%clk 0:00:07]}  Ke7 {[%clk 0:00:08]} 62. g5 {[%clk 0:00:07]}  Bh5 {[%clk 0:00:08]} 63. Rh6 {[%clk 0:00:07]}  Rh2 {[%clk 0:00:07]} 64. Kxe3 {[%clk 0:00:06]}  Rh3+ {[%clk 0:00:07]} 65. Kf4 {[%clk 0:00:07]}  Bg4 {[%clk 0:00:06]} 66. Rxh3 {[%clk 0:00:06]}  Bxh3 {[%clk 0:00:06]} 67. g6 {[%clk 0:00:07]}  Be6 {[%clk 0:00:06]} 68. g7 {[%clk 0:00:08]}  Kf7 {[%clk 0:00:06]} 69. g8=Q+ {[%clk 0:00:09]}  Kxg8 {[%clk 0:00:07]} 1/2-1/2


[Site "https://www.chess.com"]

[Event "Early Titled Tuesday Blitz | February 8 2022"]
[White "Gurevich, Dmitry"]
[Black "Przybylski, Wojciech"]
[WhiteFideId "2000407"]
[BlackFideId "1117599"]
[WhiteElo "2506"]
[BlackElo "2133"]
[Result "1-0"]
[Round "10"]
[TimeControl "180+1"]
[Date "2022.02.08"]
[WhiteClock "0:00:36"]
[BlackClock "0:00:02"]

1. d4 {[%clk 0:03:00]}  Nf6 {[%clk 0:02:59]} 2. c4 {[%clk 0:03:00]}  e6 {[%clk 0:02:59]} 3. g3 {[%clk 0:03:00]}  d5 {[%clk 0:02:49]} 4. Bg2 {[%clk 0:02:59]}  Bb4+ {[%clk 0:02:47]} 5. Nd2 {[%clk 0:02:58]}  O-O {[%clk 0:02:45]} 6. Nf3 {[%clk 0:02:57]}  Bd6 {[%clk 0:02:41]} 7. O-O {[%clk 0:02:55]}  Nbd7 {[%clk 0:02:40]} 8. b3 {[%clk 0:02:55]}  a5 {[%clk 0:02:39]} 9. Bb2 {[%clk 0:02:54]}  a4 {[%clk 0:02:38]} 10. Qc2 {[%clk 0:02:53]}  a3 {[%clk 0:02:36]} 11. Bc3 {[%clk 0:02:53]}  c5 {[%clk 0:02:35]} 12. e4 {[%clk 0:02:45]}  cxd4 {[%clk 0:02:23]} 13. Nxd4 {[%clk 0:02:42]}  dxe4 {[%clk 0:01:53]} 14. Nb5 {[%clk 0:02:37]}  Bc5 {[%clk 0:01:49]} 15. Nxe4 {[%clk 0:02:28]}  Nxe4 {[%clk 0:01:48]} 16. Bxe4 {[%clk 0:02:27]}  f5 {[%clk 0:01:48]} 17. Bg2 {[%clk 0:02:11]}  Ra6 {[%clk 0:01:46]} 18. Rad1 {[%clk 0:02:02]}  Qe7 {[%clk 0:01:05]} 19. Qd2 {[%clk 0:01:53]}  f4 {[%clk 0:00:53]} 20. b4 {[%clk 0:01:50]}  f3 {[%clk 0:00:49]} 21. Bh3 {[%clk 0:01:41]}  Bb6 {[%clk 0:00:47]} 22. c5 {[%clk 0:01:39]}  Bd8 {[%clk 0:00:43]} 23. Nd6 {[%clk 0:01:36]}  Rxd6 {[%clk 0:00:22]} 24. Qxd6 {[%clk 0:01:35]}  Nf6 {[%clk 0:00:21]} 25. Qxe7 {[%clk 0:01:30]}  Bxe7 {[%clk 0:00:20]} 26. Rfe1 {[%clk 0:01:30]}  Kf7 {[%clk 0:00:20]} 27. Re3 {[%clk 0:01:28]}  g5 {[%clk 0:00:03]} 28. Rxf3 {[%clk 0:01:22]}  h5 {[%clk 0:00:03]} 29. Bf1 {[%clk 0:01:09]}  g4 {[%clk 0:00:03]} 30. Rf4 {[%clk 0:01:08]}  Ke8 {[%clk 0:00:02]} 31. Bb5+ {[%clk 0:01:05]}  Kf7 {[%clk 0:00:01]} 32. Rd3 {[%clk 0:00:46]}  Kg6 {[%clk 0:00:02]} 33. Bxf6 {[%clk 0:00:42]}  Bxf6 {[%clk 0:00:02]} 34. Rxa3 {[%clk 0:00:42]}  e5 {[%clk 0:00:01]} 35. Re4 {[%clk 0:00:39]}  Bf5 {[%clk 0:00:01]} 36. Ree3 {[%clk 0:00:37]}  Rd8 {[%clk 0:00:02]} 37. Bd3 {[%clk 0:00:36]} 1-0


[Site "https://www.chess.com"]

[Event "Early Titled Tuesday Blitz | February 8 2022"]
[White "Haddouche, Mohamed"]
[Black "Shuvalov, Evgenij"]
[WhiteFideId "7900660"]
[BlackFideId "4187237"]
[WhiteElo "2443"]
[BlackElo "2119"]
[Result "0-1"]
[Round "10"]
[TimeControl "180+1"]
[Date "2022.02.08"]
[WhiteClock "0:00:08"]
[BlackClock "0:00:43"]

1. e4 {[%clk 0:02:59]}  e6 {[%clk 0:02:59]} 2. d3 {[%clk 0:02:58]}  d5 {[%clk 0:02:59]} 3. Qe2 {[%clk 0:02:59]}  Nf6 {[%clk 0:02:59]} 4. Nf3 {[%clk 0:02:57]}  c5 {[%clk 0:02:58]} 5. g3 {[%clk 0:02:52]}  Nc6 {[%clk 0:02:58]} 6. Bg2 {[%clk 0:02:36]}  Be7 {[%clk 0:02:58]} 7. O-O {[%clk 0:02:30]}  O-O {[%clk 0:02:58]} 8. e5 {[%clk 0:02:30]}  Ne8 {[%clk 0:02:56]} 9. c4 {[%clk 0:02:31]}  Nc7 {[%clk 0:02:53]} 10. Re1 {[%clk 0:02:30]}  b5 {[%clk 0:02:48]} 11. Nc3 {[%clk 0:02:07]}  bxc4 {[%clk 0:02:39]} 12. dxc4 {[%clk 0:01:40]}  Ba6 {[%clk 0:02:39]} 13. b3 {[%clk 0:01:40]}  Rb8 {[%clk 0:02:32]} 14. Rd1 {[%clk 0:01:31]}  h6 {[%clk 0:02:02]} 15. Bf4 {[%clk 0:01:19]}  Qc8 {[%clk 0:02:01]} 16. Qd2 {[%clk 0:01:11]}  Rd8 {[%clk 0:01:59]} 17. Bxh6 {[%clk 0:01:11]}  dxc4 {[%clk 0:01:55]} 18. Qf4 {[%clk 0:01:07]}  Nd4 {[%clk 0:01:47]} 19. Bg5 {[%clk 0:01:00]}  Nd5 {[%clk 0:01:36]} 20. Nxd5 {[%clk 0:00:49]}  Rxd5 {[%clk 0:01:08]} 21. Bxe7 {[%clk 0:00:33]}  Ne2+ {[%clk 0:01:07]} 22. Kh1 {[%clk 0:00:26]}  Nxf4 {[%clk 0:01:07]} 23. gxf4 {[%clk 0:00:27]}  c3 {[%clk 0:01:03]} 24. Rdc1 {[%clk 0:00:21]}  Rd3 {[%clk 0:00:58]} 25. Ne1 {[%clk 0:00:13]}  Qd7 {[%clk 0:00:52]} 26. Bd6 {[%clk 0:00:12]}  Rxd6 {[%clk 0:00:51]} 27. exd6 {[%clk 0:00:12]}  Qxd6 {[%clk 0:00:52]} 28. Rxc3 {[%clk 0:00:13]}  Bb7 {[%clk 0:00:52]} 29. Nd3 {[%clk 0:00:07]}  Bxg2+ {[%clk 0:00:47]} 30. Kxg2 {[%clk 0:00:08]}  Qd5+ {[%clk 0:00:47]} 31. f3 {[%clk 0:00:08]}  g5 {[%clk 0:00:45]} 32. fxg5 {[%clk 0:00:07]}  Qxg5+ {[%clk 0:00:45]} 33. Kf2 {[%clk 0:00:08]}  Qd2+ {[%clk 0:00:43]} 0-1


[Site "https://www.chess.com"]

[Event "Early Titled Tuesday Blitz | February 8 2022"]
[White "Hansen, Eric"]
[Black "Kosakowski, Jakub"]
[WhiteFideId "2606771"]
[BlackFideId "1185080"]
[WhiteElo "2568"]
[BlackElo "2476"]
[Result "0-1"]
[Round "10"]
[TimeControl "180+1"]
[Date "2022.02.08"]
[WhiteClock "0:00:03"]
[BlackClock "0:00:09"]

1. Nf3 {[%clk 0:03:00]}  Nf6 {[%clk 0:02:59]} 2. g3 {[%clk 0:03:00]}  g6 {[%clk 0:02:59]} 3. c4 {[%clk 0:02:59]}  Bg7 {[%clk 0:02:55]} 4. Bg2 {[%clk 0:03:00]}  O-O {[%clk 0:02:55]} 5. O-O {[%clk 0:03:00]}  c5 {[%clk 0:02:55]} 6. Nc3 {[%clk 0:03:00]}  d5 {[%clk 0:02:55]} 7. cxd5 {[%clk 0:03:01]}  Nxd5 {[%clk 0:02:56]} 8. d3 {[%clk 0:02:52]}  Nxc3 {[%clk 0:02:56]} 9. bxc3 {[%clk 0:02:53]}  Bxc3 {[%clk 0:02:56]} 10. Bh6 {[%clk 0:02:53]}  Bxa1 {[%clk 0:02:43]} 11. Qxa1 {[%clk 0:02:51]}  f6 {[%clk 0:02:44]} 12. Bxf8 {[%clk 0:02:47]}  Kxf8 {[%clk 0:02:44]} 13. Rc1 {[%clk 0:02:44]}  Na6 {[%clk 0:02:41]} 14. Nd2 {[%clk 0:02:03]}  Rb8 {[%clk 0:02:38]} 15. Rc4 {[%clk 0:01:40]}  b6 {[%clk 0:02:23]} 16. Rh4 {[%clk 0:01:35]}  Kg7 {[%clk 0:02:22]} 17. Ne4 {[%clk 0:01:36]}  Bf5 {[%clk 0:01:33]} 18. Ng5 {[%clk 0:01:22]}  h5 {[%clk 0:01:28]} 19. Ra4 {[%clk 0:01:17]}  Nb4 {[%clk 0:01:17]} 20. Rxa7 {[%clk 0:01:14]}  Nc2 {[%clk 0:01:07]} 21. Qb2 {[%clk 0:01:10]}  Nd4 {[%clk 0:01:06]} 22. Nf3 {[%clk 0:01:07]}  Nc6 {[%clk 0:01:05]} 23. Ra6 {[%clk 0:01:00]}  Nb4 {[%clk 0:01:01]} 24. Ra3 {[%clk 0:00:57]}  Be6 {[%clk 0:00:57]} 25. d4 {[%clk 0:00:47]}  Bd5 {[%clk 0:00:46]} 26. dxc5 {[%clk 0:00:21]}  bxc5 {[%clk 0:00:47]} 27. Qc3 {[%clk 0:00:19]}  Qd6 {[%clk 0:00:47]} 28. Nd2 {[%clk 0:00:14]}  Nxa2 {[%clk 0:00:40]} 29. Qe3 {[%clk 0:00:07]}  Nb4 {[%clk 0:00:37]} 30. Bxd5 {[%clk 0:00:07]}  Nxd5 {[%clk 0:00:38]} 31. Qd3 {[%clk 0:00:06]}  Qc6 {[%clk 0:00:33]} 32. Nc4 {[%clk 0:00:05]}  Ra8 {[%clk 0:00:27]} 33. f3 {[%clk 0:00:03]}  Nb4 {[%clk 0:00:25]} 34. Qe3 {[%clk 0:00:02]}  e5 {[%clk 0:00:13]} 35. Qd2 {[%clk 0:00:02]}  Rxa3 {[%clk 0:00:13]} 36. Nxa3 {[%clk 0:00:03]}  Qa4 {[%clk 0:00:13]} 37. Nc4 {[%clk 0:00:02]}  Qa1+ {[%clk 0:00:13]} 38. Kg2 {[%clk 0:00:03]}  Qd4 {[%clk 0:00:14]} 39. Qc1 {[%clk 0:00:03]}  Nd5 {[%clk 0:00:14]} 40. Kh1 {[%clk 0:00:02]}  h4 {[%clk 0:00:13]} 41. gxh4 {[%clk 0:00:02]}  Qxh4 {[%clk 0:00:13]} 42. Nd6 {[%clk 0:00:03]}  Nf4 {[%clk 0:00:13]} 43. Qf1 {[%clk 0:00:02]}  Nh5 {[%clk 0:00:10]} 44. Ne8+ {[%clk 0:00:02]}  Kf7 {[%clk 0:00:10]} 45. Nd6+ {[%clk 0:00:03]}  Ke6 {[%clk 0:00:10]} 46. Ne4 {[%clk 0:00:03]}  f5 {[%clk 0:00:11]} 47. Qc1 {[%clk 0:00:02]}  fxe4 {[%clk 0:00:10]} 48. Qc4+ {[%clk 0:00:02]}  Kf6 {[%clk 0:00:09]} 49. Qxc5 {[%clk 0:00:02]}  Qe1+ {[%clk 0:00:09]} 50. Kg2 {[%clk 0:00:03]}  Qxe2+ {[%clk 0:00:09]} 51. Kg1 {[%clk 0:00:03]}  Qd1+ {[%clk 0:00:09]} 52. Kf2 {[%clk 0:00:03]}  Qxf3+ {[%clk 0:00:09]} 0-1


[Site "https://www.chess.com"]